fUSD/lending_fUSD_20240319
["ID","MTS","AMOUNT","RATE_DAILY","PERIOD"]
[319602817,1710885160674,-5843.77,0.00033424,5]
[319602818,1710885160683,-1828.95,0.00033424,5]
[319602819,1710885160693,-691.9,0.00033424,5]
[319602820,1710885160704,-1109.32,0.00033424,5]
[319602821,1710885160713,-1199.84,0.00033424,5]
[319602822,1710885160722,-1216.0,0.00033424,5]
[319602823,1710885160732,-158.48,0.000335,2]
[319602824,1710885160741,-1041.1,0.00033698,5]
[319602825,1710885160750,-905.92,0.00033698,5]
[319602826,1710885160759,-760.8,0.00033698,5]
[319602827,1710885160769,-500.0,0.00033698,5]
[319602828,1710885160778,-500.0,0.00033698,5]
[319602829,1710885160789,-918.16,0.00033698,5]
[319602830,1710885160800,-1354.5,0.00033698,5]
[319602831,1710885160810,-563.69,0.00033698,5]
[319602832,1710885160819,-553.29,0.00033698,5]
[319602833,1710885160828,-363.8873593,0.00033698,5]
[319602834,1710885160838,-500.0,0.00033698,5]
[319602835,1710885160850,-500.0,0.00033698,5]
[319602836,1710885160870,-576.34,0.00033698,5]
[319602837,1710885160879,-487.62094688,0.00033698,5]
[319602838,1710885160889,-500.0,0.00033698,5]
[319602839,1710885160899,-628.41,0.00033698,5]
[319602840,1710885160908,-500.0,0.00033698,5]
[319602841,1710885160917,-500.0,0.00033698,5]
[319602842,1710885160927,-620.13,0.00033698,5]
[319602843,1710885160936,-786.01,0.00033698,5]
[319602844,1710885160945,-865.28,0.00033698,5]
[319602845,1710885160954,-564.61,0.00033698,5]
[319602846,1710885160963,-964.89,0.00033698,5]
[319602847,1710885160972,-500.0,0.00033698,5]
[319602848,1710885160980,-500.0,0.00033698,5]
[319602849,1710885160990,-529.43,0.00033698,5]
[319602850,1710885160999,-618.58,0.00033698,5]
[319602851,1710885161008,-563.52,0.00033698,5]
[319602852,1710885161017,-2015.12,0.00033698,5]
[319602853,1710885161026,-631.9,0.00033698,5]
[319602854,1710885161036,-681.13,0.00033698,5]
[319602855,1710885161045,-1086.99,0.00033698,5]
[319602856,1710885161054,-500.0,0.00033698,5]
[319602857,1710885161063,-500.0,0.00033698,5]
[319602858,1710885161073,-500.0,0.00033698,5]
[319602859,1710885161082,-500.0,0.00033698,5]
[319602860,1710885161090,-652.31,0.00033698,5]
[319602861,1710885161099,-1320.6,0.00033698,5]
[319602862,1710885161108,-1250.92,0.00033698,5]
[319602863,1710885161117,-1120.04,0.00033698,5]
[319602864,1710885161127,-500.0,0.00033698,5]
[319602865,1710885161136,-510.25,0.00033698,5]
[319602866,1710885161150,-921.3,0.00033698,5]
[319602867,1710885161159,-1043.25,0.00033698,5]
[319602868,1710885161169,-1041.72,0.00033698,5]
[319602869,1710885161179,-500.0,0.00033698,5]
[319602870,1710885161189,-535.44,0.00033698,5]
[319602871,1710885161198,-500.0,0.00033698,5]
[319602872,1710885161207,-500.0,0.00033698,5]
[319602873,1710885161217,-500.0,0.00033698,5]
[319602874,1710885161226,-500.0,0.00033698,5]
[319602875,1710885161236,-500.0,0.00033698,5]
[319602876,1710885161246,-957.02,0.00033698,5]
[319602877,1710885161255,-549.6,0.00033698,5]
[319602878,1710885161264,-500.0,0.00033698,5]
[319602879,1710885161274,-546.14,0.00033698,5]
[319602880,1710885161284,-500.0,0.00033698,5]
[319602881,1710885161294,-983.01,0.00033698,5]
[319602882,1710885161303,-500.0,0.00033698,5]
[319602883,1710885161313,-502.25,0.00033698,5]
[319602884,1710885161322,-583.52,0.00033698,5]
[319602885,1710885161332,-500.0,0.00033698,5]
[319602886,1710885161341,-701.32,0.00033698,5]
[319602887,1710885161351,-845.97,0.00033698,5]
[319602888,1710885161360,-604.6,0.00033698,5]
[319602889,1710885161370,-626.44,0.00033698,5]
[319602890,1710885161380,-500.0,0.00033698,5]
[319602891,1710885161390,-1296.65,0.00033698,5]
[319602892,1710885161400,-1134.53,0.00033698,5]
[319602893,1710885161409,-500.0,0.00033698,5]
[319602894,1710885161419,-500.0,0.00033698,5]
[319602895,1710885161429,-507.2,0.00033698,5]
[319602896,1710885161439,-783.57,0.00033698,5]
[319602897,1710885161448,-1022.89,0.00033698,5]
[319602898,1710885161457,-668.88,0.00033698,5]
[319602899,1710885161468,-500.0,0.00033698,5]
[319602900,1710885161481,-238.32052364,0.00033698,5]
[319602901,1710885161491,-597.77,0.00033698,5]
[319602902,1710885161501,-500.0,0.00033698,5]
[319602903,1710885161511,-500.0,0.00033698,5]
[319602904,1710885161522,-1578.12,0.00033698,5]
[319602905,1710885161531,-1317.95,0.00033698,5]
[319602906,1710885161541,-500.0,0.00033698,5]
[319602907,1710885161552,-706.81,0.00033698,5]
[319602908,1710885161561,-820.72,0.00033698,5]
[319602909,1710885161571,-500.0,0.00033698,5]
[319602910,1710885161580,-511.35,0.00033698,5]
[319602911,1710885161590,-1159.47,0.00033698,5]
[319602912,1710885161599,-752.64,0.00033698,5]
[319602913,1710885161609,-1433.6,0.00033698,5]
[319602914,1710885161619,-291.72326182,0.00033698,5]
[319602915,1710885161629,-500.0,0.00033698,5]
[319602916,1710885161638,-500.0,0.00033698,5]
[319602917,1710885161649,-1189.27,0.00033698,5]
[319602918,1710885161659,-500.0,0.00033698,5]
[319602919,1710885161669,-500.0,0.00033698,5]
[319602920,1710885161678,-572.14,0.00033698,5]
[319602921,1710885161688,-1127.91,0.00033698,5]
[319602922,1710885161698,-729.46,0.00033698,5]
[319602923,1710885161708,-500.0,0.00033698,5]
[319602924,1710885161718,-500.0,0.00033698,5]
[319602925,1710885161727,-1199.62,0.00033698,5]
[319602926,1710885161737,-562.99,0.00033698,5]
[319602927,1710885161747,-786.3,0.00033698,5]
[319602928,1710885161757,-500.0,0.00033698,5]
[319602929,1710885161769,-1265.95,0.00033698,5]
[319602930,1710885161778,-580.29,0.00033698,5]
[319602931,1710885161788,-500.0,0.00033698,5]
[319602932,1710885161799,-500.0,0.00033698,5]
[319602933,1710885161810,-718.68,0.00033698,5]
[319602934,1710885161820,-2136.15,0.00033698,5]
[319602935,1710885161829,-928.05,0.00033698,5]
[319602936,1710885161839,-500.0,0.00033698,5]
[319602937,1710885161850,-783.9,0.00033698,5]
[319602938,1710885161859,-1320.02,0.00033698,5]
[319602939,1710885161883,-1043.02,0.00033698,5]
[319602940,1710885161901,-802.08,0.00033698,5]
[319602941,1710885161921,-1028.49,0.00033698,5]
[319602942,1710885161942,-1179.51,0.00033698,5]
[319602943,1710885161959,-812.3,0.00033698,5]
[319602944,1710885161977,-1146.04,0.00033698,5]
[319602945,1710885161993,-500.0,0.00033698,5]
[319602946,1710885162012,-1045.71,0.00033698,5]
[319602947,1710885162032,-500.0,0.00033698,5]
[319602948,1710885162050,-530.67,0.00033698,5]
[319602949,1710885162072,-585.91854289,0.00033698,5]
[319602950,1710885162088,-649.64,0.00033698,5]
[319602951,1710885162101,-500.0,0.00033698,5]
[319602952,1710885162119,-500.0,0.00033698,5]
[319602953,1710885162138,-500.0,0.00033698,5]
[319602954,1710885162157,-500.0,0.00033698,5]
[319602955,1710885162174,-775.28,0.00033698,5]
[319602956,1710885162199,-897.58,0.00033698,5]
[319602957,1710885162216,-1675.73,0.00033698,5]
[319602958,1710885162235,-500.0,0.00033698,5]
[319602959,1710885162253,-937.79,0.00033698,5]
[319602960,1710885162272,-500.0,0.00033698,5]
[319602961,1710885162291,-734.15,0.00033698,5]
[319602962,1710885162307,-1431.93,0.00033698,5]
[319602963,1710885162324,-530.51,0.00033698,5]
[319602964,1710885162341,-1508.78,0.00033698,5]
[319602965,1710885162359,-500.0,0.00033698,5]
[319602966,1710885162378,-500.0,0.00033698,5]
[319602967,1710885162394,-621.71,0.00033698,5]
[319602968,1710885162411,-3024.0,0.00033698,5]
[319602969,1710885162428,-571.47,0.00033698,5]
[319602970,1710885162444,-500.0,0.00033698,5]
[319602971,1710885162462,-762.86,0.00033698,5]
[319602972,1710885162480,-538.79,0.00033698,5]
[319602973,1710885162497,-985.89,0.00033698,5]
[319602974,1710885162516,-1947.91,0.00033698,5]
[319602975,1710885162533,-863.2,0.00033698,5]
[319602976,1710885162550,-538.79,0.00033698,5]
[319602977,1710885162568,-747.16,0.00033698,5]
[319602978,1710885162584,-772.61,0.00033698,5]
[319602979,1710885162601,-500.0,0.00033698,5]
[319602980,1710885162616,-500.0,0.00033698,5]
[319602981,1710885162633,-1767.34,0.00033698,5]
[319602982,1710885162648,-500.0,0.00033698,5]
[319602983,1710885162665,-1603.73,0.00033698,5]
[319602984,1710885162681,-500.0,0.00033698,5]
[319602985,1710885162697,-892.48,0.00033698,5]
[319602986,1710885162711,-654.11,0.00033698,5]
[319602987,1710885162727,-1478.75,0.00033698,5]
[319602988,1710885162743,-1208.68,0.00033698,5]
[319602989,1710885162758,-1428.4,0.00033698,5]
[319602990,1710885162773,-1477.07,0.00033698,5]
[319602991,1710885162788,-526.9,0.00033698,5]
[319602992,1710885162803,-2930.57,0.00033698,5]
[319602993,1710885162819,-1084.77,0.00033698,5]
[319602994,1710885162834,-948.83,0.00033698,5]
[319602995,1710885162850,-500.0,0.00033698,5]
[319602996,1710885162866,-1970.31,0.00033698,5]
[319602997,1710885162880,-748.56,0.00033698,5]
[319602998,1710885162895,-853.25,0.00033698,5]
[319602999,1710885162911,-1046.29,0.00033698,5]
[319603000,1710885162928,-608.95,0.00033698,5]
[319603001,1710885162943,-592.03399389,0.00033698,5]
[319603002,1710885162959,-636.98,0.00033698,5]
[319603003,1710885162975,-500.0,0.00033698,5]
[319603004,1710885162989,-1279.27,0.00033698,5]
[319603005,1710885163004,-1827.01,0.00033698,5]
[319603006,1710885163020,-500.0,0.00033698,5]
[319603007,1710885163036,-1006.11,0.00033698,5]
[319603008,1710885163051,-500.0,0.00033698,5]
[319603009,1710885163068,-1949.93,0.00033698,5]
[319603010,1710885163083,-1192.24,0.00033698,5]
[319603011,1710885163098,-2813.53,0.00033698,5]
[319603012,1710885163115,-845.98,0.00033698,5]
[319603013,1710885163130,-1011.35,0.00033698,5]
[319603014,1710885163144,-1701.68,0.00033698,5]
[319603015,1710885163159,-1413.56,0.00033698,5]
[319603016,1710885163174,-671.21,0.00033698,5]
[319603017,1710885163190,-856.2,0.00033698,5]
[319603018,1710885163206,-1896.31,0.00033698,5]
[319603019,1710885163222,-2782.61,0.00033698,5]
[319603020,1710885163236,-564.67531424,0.00033698,5]
[319603021,1710885163252,-609.95,0.00033698,5]
[319603022,1710885163267,-500.0,0.00033698,5]
[319603023,1710885163282,-1536.94,0.00033698,5]
[319603024,1710885163296,-2552.49,0.00033698,5]
[319603025,1710885163312,-2081.49,0.00033698,5]
[319603026,1710885163328,-500.0,0.00033698,5]
[319603027,1710885163343,-1715.16,0.00033698,5]
[319603028,1710885163360,-1266.65,0.00033698,5]
[319603029,1710885163375,-1645.88,0.00033698,5]
[319603030,1710885163390,-500.0,0.00033698,5]
[319603031,1710885163405,-500.0,0.00033698,5]
[319603032,1710885163419,-500.0,0.00033698,5]
[319603033,1710885163434,-500.0,0.00033698,5]
[319603034,1710885163449,-1784.06,0.00033698,5]
[319603035,1710885163465,-1425.44,0.00033698,5]
[319603036,1710885163484,-645.99,0.00033698,5]
[319603037,1710885163500,-856.99,0.00033698,5]
[319603038,1710885163515,-549.24591248,0.00033698,5]
[319603039,1710885163530,-1509.6,0.00033698,5]
[319603040,1710885163545,-500.0,0.00033698,5]
[319603041,1710885163561,-1899.37,0.00033698,5]
[319603042,1710885163575,-825.81,0.00033698,5]
[319603043,1710885163590,-500.0,0.00033698,5]
[319603044,1710885163605,-1668.46,0.00033698,5]
[319603045,1710885163620,-500.0,0.00033698,5]
[319603046,1710885163635,-1817.59,0.00033698,5]
[319603047,1710885163650,-612.56,0.00033698,5]
[319603048,1710885163666,-500.0,0.00033698,5]
[319603049,1710885163680,-641.85,0.00033698,5]
[319603050,1710885163695,-500.0,0.00033698,5]
[319603051,1710885163711,-3349.51,0.00033698,5]
[319603052,1710885163726,-1668.73,0.00033698,5]
[319603053,1710885163742,-500.0,0.00033698,5]
[319603054,1710885163757,-2185.83,0.00033698,5]
[319603055,1710885163772,-1047.88,0.00033698,5]
[319603056,1710885163787,-500.0,0.00033698,5]
[319603057,1710885163802,-709.8,0.00033698,5]
[319603058,1710885163817,-3189.82,0.00033698,5]
[319603059,1710885163832,-2131.99,0.00033698,5]
[319603060,1710885163847,-500.0,0.00033698,5]
[319603061,1710885163862,-500.0,0.00033698,5]
[319603062,1710885163876,-2548.99,0.00033698,5]
[319603063,1710885163891,-1717.39,0.00033698,5]
[319603064,1710885163905,-500.0,0.00033698,5]
[319603065,1710885163920,-3499.12,0.00033698,5]
[319603066,1710885163934,-3366.11,0.00033698,5]
[319603067,1710885163956,-920.95,0.00033698,5]
[319603068,1710885163972,-1172.13,0.00033698,5]
[319603069,1710885163987,-762.14,0.00033698,5]
[319603070,1710885164004,-500.0,0.00033698,5]
[319603071,1710885164019,-500.0,0.00033698,5]
[319603072,1710885164034,-500.0,0.00033698,5]
[319603073,1710885164050,-500.0,0.00033698,5]
[319603074,1710885164064,-651.81,0.00033698,5]
[319603075,1710885164080,-500.0,0.00033698,5]
[319603076,1710885164096,-2755.73,0.00033698,5]
[319603077,1710885164111,-2171.26,0.00033698,5]
[319603078,1710885164126,-554.31,0.00033698,5]
[319603079,1710885164141,-913.38,0.00033698,5]
[319603080,1710885164158,-517.56,0.00033698,5]
[319603081,1710885164174,-1265.69,0.00033698,5]
[319603082,1710885164190,-622.91,0.00033698,5]
[319603083,1710885164206,-576.05,0.00033698,5]
[319603084,1710885164221,-2191.46,0.00033698,5]
[319603085,1710885164236,-1378.12,0.00033698,5]
[319603086,1710885164251,-500.0,0.00033698,5]
[319603087,1710885164268,-832.3,0.00033698,5]
[319603088,1710885164577,-3259.21,0.00033698,5]
[319603089,1710885164600,-516.5,0.00033698,5]
[319603090,1710885164610,-500.0,0.00033698,5]
[319603091,1710885164620,-500.0,0.00033698,5]
[319603092,1710885164629,-750.69,0.00033698,5]
[319603093,1710885164639,-6099.55,0.00033698,5]
[319603094,1710885164649,-500.0,0.00033698,5]
[319603095,1710885164660,-705.53,0.00033698,5]
[319603096,1710885164669,-510.82,0.00033698,5]
[319603097,1710885164678,-583.59,0.00033698,5]
[319603098,1710885164688,-554.14,0.00033698,5]
[319603099,1710885164697,-1054.91,0.00033698,5]
[319603100,1710885164707,-1769.12,0.00033698,5]
[319603101,1710885164716,-758.11,0.00033698,5]
[319603102,1710885164725,-500.0,0.00033698,5]
[319603103,1710885164735,-614.47,0.00033698,5]
[319603104,1710885164744,-500.0,0.00033698,5]
[319603105,1710885164754,-565.83,0.00033698,5]
[319603106,1710885164764,-3031.48,0.00033698,5]
[319603107,1710885164773,-1813.36,0.00033698,5]
[319603108,1710885164783,-1793.05,0.00033698,5]
[319603109,1710885164793,-1781.25,0.00033698,5]
[319603110,1710885164802,-500.0,0.00033698,5]
[319603111,1710885164812,-5948.25,0.00033698,5]
[319603112,1710885164821,-721.19,0.00033698,5]
[319603113,1710885164830,-506.92011432,0.00033698,5]
[319603114,1710885164840,-500.0,0.00033698,5]
[319603115,1710885164849,-2298.94,0.00033698,5]
[319603116,1710885164859,-500.0,0.00033698,5]
[319603117,1710885164869,-1467.68,0.00033698,5]
[319603118,1710885164878,-2048.3,0.00033698,5]
[319603119,1710885164888,-740.6,0.00033698,5]
[319603120,1710885164897,-422.23824572,0.00033698,5]
[319603121,1710885164906,-3725.64,0.00033698,5]
[319603122,1710885164916,-7446.28,0.00033698,5]
[319603123,1710885164925,-1176.01,0.00033698,5]
[319603124,1710885164935,-500.0,0.00033698,5]
[319603125,1710885164944,-1639.61,0.00033698,5]
[319603126,1710885164953,-381.84,0.00033698,5]
[319603127,1710885164962,-814.35,0.00033698,5]
[319603128,1710885164972,-1904.86,0.00033698,5]
[319603129,1710885164982,-531.89,0.00033698,5]
[319603130,1710885164991,-541.15,0.00033698,5]
[319603131,1710885165001,-505.23,0.00033698,5]
[319603132,1710885165012,-1726.69,0.00033698,5]
[319603133,1710885165021,-500.0,0.00033698,5]
[319603134,1710885165030,-706.92,0.00033698,5]
[319603135,1710885165039,-1397.11,0.00033698,5]
[319603136,1710885165049,-644.74,0.00033698,5]
[319603137,1710885165059,-723.57,0.00033698,5]
[319603138,1710885165069,-2864.27,0.00033698,5]
[319603139,1710885165078,-2584.9,0.00033698,5]
[319603140,1710885165087,-500.0,0.00033698,5]
[319603141,1710885165097,-6961.76,0.00033698,5]
[319603142,1710885165106,-500.0,0.00033698,5]
[319603143,1710885165115,-1043.19,0.00033698,5]
[319603144,1710885165125,-915.89,0.00033698,5]
[319603145,1710885165134,-1045.63,0.00033698,5]
[319603146,1710885165143,-1312.85,0.00033698,5]
[319603147,1710885165153,-961.87,0.00033698,5]
[319603148,1710885165163,-3736.86,0.00033698,5]
[319603149,1710885165172,-1764.05,0.00033698,5]
[319603150,1710885165183,-501.06538766,0.00033698,5]
[319603151,1710885165192,-838.02,0.00033698,5]
[319603152,1710885165202,-500.0,0.00033698,5]
[319603153,1710885165212,-1302.7,0.00033698,5]
[319603154,1710885165221,-2820.33,0.00033698,5]
[319603155,1710885165231,-500.0,0.00033698,5]
[319603156,1710885165240,-2171.52,0.00033698,5]
[319603157,1710885165250,-4792.93,0.00033698,5]
[319603158,1710885165260,-500.0,0.00033698,5]
[319603159,1710885165270,-500.0,0.00033698,5]
[319603160,1710885165279,-500.0,0.00033698,5]
[319603161,1710885165289,-2181.61,0.00033698,5]
[319603162,1710885165298,-1199.36,0.00033698,5]
[319603163,1710885165308,-501.95,0.00033698,5]
[319603164,1710885165318,-500.0,0.00033698,5]
[319603165,1710885165327,-1621.75,0.00033698,5]
[319603166,1710885165337,-589.7,0.00033698,5]
[319603167,1710885165347,-500.0,0.00033698,5]
[319603168,1710885165357,-855.86,0.00033698,5]
[319603169,1710885165367,-500.0,0.00033698,5]
[319603170,1710885165378,-3227.64,0.00033698,5]
[319603171,1710885165388,-863.41,0.00033698,5]
[319603172,1710885165398,-2111.52,0.00033698,5]
[319603173,1710885165409,-2950.43,0.00033698,5]
[319603174,1710885165419,-500.0,0.00033698,5]
[319603175,1710885165429,-500.0,0.00033698,5]
[319603176,1710885165438,-5122.72,0.00033698,5]
[319603177,1710885165448,-824.14,0.00033698,5]
[319603178,1710885165457,-500.0,0.00033698,5]
[319603179,1710885165467,-10026.4,0.00033698,5]
[319603180,1710885165482,-500.0,0.00033698,5]
[319603181,1710885165491,-500.0,0.00033698,5]
[319603182,1710885165501,-2275.12,0.00033698,5]
[319603183,1710885165510,-500.0,0.00033698,5]
[319603184,1710885165522,-565.71,0.00033698,5]
[319603185,1710885165532,-1033.05,0.00033698,5]
[319603186,1710885165541,-126732.2,0.00033698,5]
[319603187,1710885165551,-504.07,0.00033698,5]
[319603188,1710885165560,-500.0,0.00033698,5]
[319603189,1710885165569,-500.0,0.00033698,5]
[319603190,1710885165578,-4852.56,0.00033698,5]
[319603191,1710885165587,-2937.74,0.00033698,5]
[319603192,1710885165597,-1976.68,0.00033698,5]
[319603193,1710885165606,-777.71,0.00033698,5]
[319603194,1710885165616,-1133.54,0.00033698,5]
[319603195,1710885165625,-2119.46,0.00033698,5]
[319603196,1710885165635,-500.0,0.00033698,5]
[319603197,1710885165647,-7711.4,0.00033698,5]
[319603198,1710885165657,-524.36,0.00033698,5]
[319603199,1710885165666,-7310.51,0.00033698,5]
[319603200,1710885165676,-500.0,0.00033698,5]
[319603201,1710885165686,-14442.37,0.00033698,5]
[319603202,1710885165695,-500.0,0.00033698,5]
[319603203,1710885165705,-500.0,0.00033698,5]
[319603204,1710885165714,-5376.56,0.00033698,5]
[319603205,1710885165723,-4230.03,0.00033698,5]
[319603206,1710885165733,-582.24,0.00033698,5]
[319603207,1710885165742,-751.89,0.00033698,5]
[319603208,1710885165751,-542.91,0.00033698,5]
[319603209,1710885165760,-500.0,0.00033698,5]
[319603210,1710885165770,-1949.45,0.00033698,5]
[319603211,1710885165779,-5623.75,0.00033698,5]
[319603212,1710885165789,-1033.59,0.00033698,2]
[319603213,1710885165798,-5877.04,0.00033698,5]
[319603214,1710885165807,-825.5,0.00033698,5]
[319603215,1710885165817,-521.04,0.00033698,5]
[319603216,1710885165826,-636.0,0.00033698,5]
[319603217,1710885165835,-503.31,0.00033698,5]
[319603218,1710885165845,-500.0,0.00033698,5]
[319603219,1710885165854,-3068.4,0.00033698,5]
[319603220,1710885165864,-2857.27,0.00033698,5]
[319603221,1710885165873,-814.62,0.00033698,5]
[319603222,1710885165883,-631.3,0.00033698,5]
[319603223,1710885165897,-500.0,0.00033698,5]
[319603224,1710885165907,-2550.99,0.00033698,5]
[319603225,1710885165916,-1149.73,0.00033698,5]
[319603226,1710885165925,-1638.18,0.00033698,5]
[319603227,1710885165935,-7487.75,0.00033698,5]
[319603228,1710885165945,-7814.4,0.00033698,5]
[319603229,1710885165954,-529.96,0.00033698,5]
[319603230,1710885165964,-705.8,0.00033698,5]
[319603231,1710885165973,-594.04,0.00033698,5]
[319603232,1710885165983,-500.0,0.00033698,5]
[319603233,1710885165992,-500.0,0.00033698,5]
[319603234,1710885166000,-500.0,0.00033698,5]
[319603235,1710885166010,-500.0,0.00033698,5]
[319603236,1710885166019,-3016.27,0.00033698,5]
[319603237,1710885166029,-500.0,0.00033698,5]
[319603238,1710885166039,-38480.53,0.00033698,5]
[319603239,1710885166048,-2988.01,0.00033698,5]
[319603240,1710885166059,-968.19,0.00033698,5]
[319603241,1710885166069,-767.81,0.00033698,5]
[319603242,1710885166078,-3358.0,0.00033698,5]
[319603243,1710885166088,-500.0,0.00033698,5]
[319603244,1710885166097,-2995.65,0.00033698,5]
[319603245,1710885166106,-500.0,0.00033698,5]
[319603246,1710885166115,-2879.31,0.00033698,5]
[319603247,1710885166124,-3475.26,0.00033698,5]
[319603248,1710885166134,-817.64,0.00033698,5]
[319603249,1710885166143,-626.59,0.00033698,5]
[319603250,1710885166153,-1532.23,0.00033698,5]
[319603251,1710885166162,-500.0,0.00033698,5]
[319603252,1710885166172,-1675.59,0.00033698,5]
[319603253,1710885166181,-1175.56,0.00033698,5]
[319603254,1710885166190,-1109.08,0.00033698,5]
[319603255,1710885166200,-1008.18,0.00033698,5]
[319603256,1710885166210,-2383.57,0.00033698,5]
[319603257,1710885166220,-1104.88,0.00033698,5]
[319603258,1710885166230,-6551.95,0.00033698,5]
[319603259,1710885166240,-20378.39,0.00033698,5]
[319603260,1710885166250,-3428.01,0.00033698,5]
[319603261,1710885166259,-500.0,0.00033698,5]
[319603262,1710885166269,-724.41,0.00033698,5]
[319603263,1710885166278,-2691.76,0.00033698,5]
[319603264,1710885166289,-4023.07,0.00033698,5]
[319603265,1710885166299,-500.0,0.00033698,5]
[319603266,1710885166310,-518.98,0.00033698,5]
[319603267,1710885166320,-532.04,0.00033698,5]
[319603268,1710885166330,-172.55741004,0.00033698,5]
[319603269,1710885166340,-3655.41,0.00033698,5]
[319603270,1710885166350,-3100.4,0.00033698,5]
[319603271,1710885166361,-532.61,0.00033698,5]
[319603272,1710885166372,-1495.58,0.00033698,5]
[319603273,1710885166383,-5255.9,0.00033698,5]
[319603274,1710885166393,-646.23,0.00033698,5]
[319603275,1710885166403,-500.0,0.00033698,5]
[319603276,1710885166413,-856.3,0.00033698,5]
[319603277,1710885166422,-1919.76,0.00033698,5]
[319603278,1710885166431,-2848.19,0.00033698,5]
[319603279,1710885166441,-500.0,0.00033698,5]
[319603280,1710885166450,-514.35,0.00033698,5]
[319603281,1710885166461,-84885.72,0.00033698,5]
[319603282,1710885166471,-7528.25,0.00033698,5]
[319603283,1710885166485,-917.99,0.00033698,5]
[319603284,1710885166495,-2075.6,0.00033698,5]
[319603285,1710885166505,-556.06,0.00033698,5]
[319603286,1710885166515,-500.0,0.00033698,5]
[319603287,1710885166524,-4053.66,0.00033698,5]
[319603288,1710885166533,-950.92,0.00033698,5]
[319603289,1710885166543,-1498.56,0.00033698,5]
[319603290,1710885166553,-6114.82,0.00033698,5]
[319603291,1710885166563,-1068.02,0.00033698,5]
[319603292,1710885166573,-1140.75,0.00033698,5]
[319603293,1710885166583,-1363.9,0.00033698,5]
[319603294,1710885166592,-680.37,0.00033698,5]
[319603295,1710885166602,-7331.78,0.00033698,5]
[319603296,1710885166611,-6608.67,0.00033698,5]
[319603297,1710885166620,-5255.76,0.00033698,5]
[319603298,1710885166630,-1065.89,0.00033698,5]
[319603299,1710885166639,-2244.41,0.00033698,5]
[319603300,1710885166649,-12679.11,0.00033698,5]
[319603301,1710885166660,-501.67,0.00033698,5]
[319603302,1710885166670,-500.0,0.00033698,5]
[319603303,1710885166679,-1134.2,0.00033698,5]
[319603304,1710885166688,-535.13,0.00033698,5]
[319603305,1710885166698,-500.0,0.00033698,5]
[319603306,1710885166707,-952.29,0.00033698,5]
[319603307,1710885166716,-16057.66,0.00033698,5]
[319603308,1710885166725,-5689.03,0.00033698,5]
[319603309,1710885166735,-9318.38,0.00033698,5]
[319603310,1710885166744,-661.71,0.00033698,5]
[319603311,1710885166754,-6799.03,0.00033698,5]
[319603312,1710885166763,-4026.73,0.00033698,5]
[319603313,1710885166773,-3035.5,0.00033698,5]
[319603314,1710885166782,-3750.07,0.00033698,5]
[319603315,1710885166792,-935.16,0.00033698,5]
[319603316,1710885166801,-6185.77,0.00033698,5]